bitfinex-derivatives/quotes_SOLF0:USTF0_20260207
["timestamp","ask_amount","ask_price","bid_price","bid_amount"]
[1770481858569,14.17487975,87.024,86.914,10.364]
[1770481858869,10.3493,87.039,86.89,8.90724527]
[1770481858870,14.17487975,87.025,86.932,10.3619]
[1770481859076,14.17487975,87.039,86.932,10.3619]
[1770481859375,8.90724527,87.04,86.932,10.3619]
[1770481859674,14.17487975,87.038,86.932,10.3619]
[1770481859877,23.08212502,87.04,86.932,10.3619]
[1770481860275,14.17487975,87.033,86.932,10.3619]
[1770481860575,14.17487975,87.03,86.932,10.3619]
[1770481860771,14.17487975,87.026,86.932,10.3619]
[1770481860970,14.17487975,87.02,86.932,10.3619]
[1770481861174,8.90724527,87.01,86.913,10.3642]
[1770481861365,14.17487975,87.006,86.913,10.3642]
[1770481861568,14.17487975,87.004,86.913,10.3642]
[1770481861778,14.17487975,87.006,86.913,10.3642]
[1770481861968,8.90724527,87.01,86.913,10.3642]
[1770481862571,14.17487975,87.006,86.913,10.3642]
[1770481862781,14.17487975,87.002,86.913,10.3642]
[1770481862973,10.69225789,86.988,86.913,10.3642]
[1770481863481,8.90724527,87.01,86.893,10.3665]
[1770481863482,10.69225789,86.979,86.893,10.3665]
[1770481863776,10.69225789,86.993,86.878,161.2869]
[1770481863979,10.69225789,86.994,86.878,161.2869]
[1770481864166,10.69225789,86.997,86.86,8.90724527]
[1770481864376,10.69225789,86.997,86.896,161.2527]
[1770481864581,10.69225789,87.002,86.897,161.2518]
[1770481864778,10.69225789,87.002,86.902,10.3655]
[1770481864975,10.69225789,86.994,86.902,10.3655]
[1770481865681,10.69225789,86.993,86.902,10.3655]
[1770481866180,10.69225789,87.004,86.923,10.363]
[1770481866482,10.69225789,87.009,86.923,10.363]
[1770481866669,10.69225789,87.01,86.923,10.363]
[1770481866874,10.69225789,87.014,86.923,10.363]
[1770481867077,10.69225789,87.01,86.923,10.363]
[1770481867282,10.69225789,87.012,86.923,10.363]
[1770481867677,10.69225789,87.01,86.923,10.363]
[1770481868381,10.69225789,87.011,86.923,10.363]
[1770481870075,21.26231963,87.035,86.923,10.363]
[1770481870076,10.69225789,87.009,86.923,10.363]
[1770481870280,10.69225789,87.007,86.923,10.363]
[1770481870478,10.69225789,87.009,86.923,10.363]
[1770481870678,10.69225789,87.011,86.923,10.363]
[1770481871680,10.69225789,87.009,86.923,10.363]
[1770481871877,10.69225789,87.012,86.923,10.363]
[1770481872277,10.69225789,87.017,86.944,10.3605]
[1770481872480,10.69225789,87.022,86.944,10.3605]
[1770481873284,10.69225789,87.023,86.944,10.3605]
[1770481874179,10.69225789,87.019,86.944,10.3605]
[1770481874779,10.69225789,87.018,86.944,10.3605]
[1770481874980,10.69225789,87.014,86.944,10.3605]
[1770481875177,10.69225789,87.014,86.928,10.3624]
[1770481875378,10.69225789,87.008,86.928,10.3624]
[1770481876579,34.57,87.039,86.946,10.3603]
[1770481876580,10.69225789,87.013,86.946,10.3603]
[1770481876889,10.69225789,87.023,86.946,10.3603]
[1770481877491,10.69225789,87.024,86.946,10.3603]
[1770481877786,10.69225789,87.029,86.946,10.3603]
[1770481878290,10.69225789,87.031,86.96,10.3585]
[1770481878485,10.69225789,87.035,86.96,10.3585]
[1770481879389,10.69225789,87.036,86.96,10.3585]
[1770481879887,10.69225789,87.041,86.975,10.3568]
[1770481880093,10.69225789,87.043,86.921,161.2071]
[1770481880292,10.69225789,87.044,86.922,161.2048]
[1770481880491,10.69225789,87.042,86.922,161.2048]
[1770481880791,10.69225789,87.044,86.922,161.2048]
[1770481881595,10.69225789,87.043,86.959,10.3587]
[1770481881793,10.69225789,87.045,86.959,10.3587]
[1770481883188,10.69225789,87.046,86.959,10.3587]
[1770481883395,10.69225789,87.048,86.959,10.3587]
[1770481884392,10.69225789,87.049,86.959,10.3587]
[1770481884796,10.3485,87.046,86.959,10.3587]
[1770481884996,10.69225789,87.03,86.942,10.3607]
[1770481885198,10.69225789,87.034,86.942,10.3607]
[1770481885397,10.69225789,87.035,86.919,161.2098]
[1770481885595,10.69225789,87.044,86.957,10.359]
[1770481885796,10.69225789,87.049,86.957,10.359]
[1770481886401,10.69225789,87.048,86.957,10.359]
[1770481887199,10.69225789,87.047,86.957,10.359]
[1770481887396,10.69225789,87.042,86.938,10.3612]
[1770481887698,10.69225789,87.014,86.9,447.47220206]
[1770481888096,10.69225789,87.013,86.9,447.47220206]
[1770481888295,10.69225789,87.012,86.9,447.47220206]
[1770481888493,10.3532,87.006,86.907,10.3648]
[1770481888693,10.69225789,87.003,86.907,10.3648]
[1770481889304,10.69225789,87.0,86.907,10.3648]
[1770481889697,10.69225789,86.996,86.907,10.3648]
[1770481889896,10.69225789,86.998,86.907,10.3648]
[1770481890405,10.69225789,86.994,86.907,10.3648]
[1770481890703,21.26231963,87.018,86.9,447.47220206]
[1770481890704,10.69225789,87.007,86.927,10.3625]
[1770481890894,10.69225789,87.009,86.927,10.3625]
[1770481891295,10.69225789,87.004,86.927,10.3625]
[1770481891904,10.69225789,86.999,86.927,10.3625]
[1770481892399,10.69225789,86.997,86.927,10.3625]
[1770481893401,10.69225789,86.995,86.927,10.3625]
[1770481893594,10.69225789,86.999,86.927,10.3625]
[1770481893792,10.69225789,87.004,86.927,10.3625]
[1770481894203,10.69225789,86.998,86.927,10.3625]
[1770481895202,10.69225789,86.996,86.927,10.3625]
[1770481896305,10.69225789,86.994,86.927,10.3625]
[1770481897206,10.69225789,86.993,86.927,10.3625]
[1770481897502,10.69225789,86.988,86.927,10.3625]
[1770481897806,10.69225789,86.979,86.908,10.3648]
[1770481898005,10.69225789,86.981,86.908,10.3648]
[1770481898202,10.69225789,86.98,86.908,10.3648]
[1770481898802,10.69225789,86.981,86.908,10.3648]
[1770481899209,10.69225789,86.98,86.908,10.3648]
[1770481899806,10.69225789,86.976,86.908,10.3648]
[1770481900000,10.69225789,86.98,86.908,10.3648]
[1770481900511,10.69225789,86.988,86.925,10.3628]
[1770481900711,10.69225789,86.99,86.925,10.3628]
[1770481901915,10.69225789,86.984,86.925,10.3628]
[1770481902412,10.69225789,86.985,86.925,10.3628]
[1770481903107,10.69225789,86.984,86.925,10.3628]
[1770481903308,10.69225789,86.985,86.925,10.3628]
[1770481904309,10.69225789,86.99,86.925,10.3628]
[1770481904707,10.69225789,86.999,86.925,10.3628]
[1770481905301,10.69225789,87.001,86.941,10.3608]
[1770481905504,10.69225789,87.001,86.9,456.36313287]
[1770481905505,10.69225789,87.005,86.919,161.2107]
[1770481906107,10.69225789,87.006,86.919,161.2107]
[1770481906711,10.69225789,87.006,86.955,10.3591]
[1770481907111,10.69225789,87.011,86.955,10.3591]
[1770481907412,38.6967595,87.058,86.955,10.3591]
[1770481907413,10.69225789,87.016,86.955,10.3591]
[1770481907809,10.69225789,87.013,86.955,10.3591]
[1770481908008,10.69225789,87.006,86.937,10.3614]
[1770481908207,10.69225789,87.0,86.937,10.3614]
[1770481908411,10.69225789,87.001,86.937,10.3614]
[1770481908609,10.69225789,86.997,86.937,10.3614]
[1770481908915,10.69225789,86.996,86.919,10.3635]
[1770481909116,10.69225789,86.994,86.919,10.3635]
[1770481909619,10.69225789,86.987,86.919,10.3635]
[1770481909818,10.3512,87.023,86.919,10.3635]
[1770481909819,10.69225789,86.985,86.919,10.3635]
[1770481910119,10.69225789,86.975,86.903,10.3654]
[1770481910416,10.69225789,86.971,86.903,10.3654]
[1770481911006,10.69225789,86.965,86.903,10.3654]
[1770481911313,10.69225789,86.966,86.903,10.3654]
[1770481912015,10.69225789,86.967,86.903,10.3654]
[1770481912212,10.69225789,86.966,86.903,10.3654]
[1770481912423,10.69225789,86.967,86.903,10.3654]
[1770481913014,10.69225789,86.957,86.903,10.3654]
[1770481913210,10.69225789,86.957,86.886,10.3674]
[1770481913407,10.69225789,86.949,86.886,10.3674]
[1770481913606,10.69225789,86.949,86.84,8.89093081]
[1770481913806,10.69225789,86.939,86.826,13.98578787]
[1770481914018,8.89093081,86.96,86.82,161.3935]
[1770481914019,10.69225789,86.924,86.82,161.3935]
[1770481914317,10.69225789,86.924,86.813,161.4066]
[1770481914517,10.69225789,86.913,86.81,8.89093081]
[1770481914820,10.69225789,86.915,86.81,8.89093081]
[1770481915013,10.69225789,86.918,86.818,161.3984]
[1770481915418,10.69225789,86.922,86.819,161.3957]
[1770481915724,10.69225789,86.931,86.846,10.3721]
[1770481915912,10.69225789,86.936,86.846,10.3721]
[1770481916214,10.69225789,86.948,86.849,161.3396]
[1770481916417,10.3558,86.984,86.849,161.3396]
[1770481916418,10.69225789,86.955,86.849,161.3396]
[1770481917217,10.69225789,86.945,86.881,10.368]
[1770481917408,10.69225789,86.947,86.881,10.368]
[1770481917607,10.69225789,86.949,86.863,10.3701]
[1770481917925,10.69225789,86.948,86.863,10.3701]
[1770481918219,10.69225789,86.943,86.863,10.3701]
[1770481918407,10.69225789,86.944,86.863,10.3701]
[1770481919317,10.69225789,86.946,86.863,10.3701]
[1770481919719,10.69225789,86.944,86.863,10.3701]
[1770481920112,10.69225789,86.943,86.863,10.3701]
[1770481920317,10.69225789,86.944,86.863,10.3701]
[1770481920523,10.69225789,86.935,86.846,10.3722]
[1770481920821,10.69225789,86.923,86.846,10.3722]
[1770481921217,10.69225789,86.925,86.827,10.3744]
[1770481921414,10.69225789,86.921,86.827,10.3744]
[1770481921720,10.69225789,86.908,86.78,8.89093081]
[1770481921916,10.69225789,86.908,86.796,161.4386]
[1770481922123,10.69225789,86.924,86.816,161.4023]
[1770481922424,10.69225789,86.929,86.816,161.4023]
[1770481922817,10.69225789,86.929,86.846,10.3722]
[1770481923019,10.36,86.949,86.794,2.00346577]
[1770481923020,10.69225789,86.919,86.8,161.4309]
[1770481923224,10.69225789,86.917,86.8,161.4309]
[1770481923420,10.69225789,86.917,86.829,10.3742]
[1770481924021,10.69225789,86.912,86.78,70.89093081]
[1770481924218,10.69225789,86.919,86.806,161.4195]
[1770481924417,10.69225789,86.924,86.801,161.4284]
[1770481924619,10.69225789,86.924,86.806,161.4192]
[1770481924820,10.69225789,86.93,86.829,10.3742]
[1770481925216,10.69225789,86.936,86.829,10.3742]
[1770481925418,10.69225789,86.935,86.829,10.3742]
[1770481926223,10.69225789,86.936,86.829,10.3742]
[1770481926726,10.69225789,86.935,86.829,10.3742]
[1770481926918,10.69225789,86.934,86.829,10.3742]
[1770481927221,10.69225789,86.922,86.829,10.3742]
[1770481927525,10.69225789,86.903,86.811,10.3763]
[1770481927925,10.69225789,86.903,86.793,462.90895957]
[1770481928129,10.3663,86.896,86.793,462.90895957]
[1770481928330,10.69225789,86.885,86.793,462.90895957]
[1770481928527,21.05855789,86.896,86.793,462.90895957]
[1770481928722,10.69225789,86.894,86.793,462.90895957]
[1770481929123,21.05855789,86.896,86.793,462.90895957]
[1770481929322,10.69225789,86.895,86.793,462.90895957]
[1770481929529,10.3663,86.896,86.793,462.90895957]
[1770481930017,10.69225789,86.903,86.793,462.90895957]
[1770481930222,10.69225789,86.909,86.81,10.3765]
[1770481930923,10.69225789,86.904,86.81,10.3765]
[1770481931128,8.89093081,86.88,86.773,10.3809]
[1770481931324,8.89093081,86.88,86.757,161.5108]
[1770481931725,8.89093081,86.88,86.764,2.00436006]
[1770481931924,10.69225789,86.895,86.764,2.00436006]
[1770481932130,10.69225789,86.9,86.764,2.00436006]
[1770481932629,10.69225789,86.902,86.764,2.00436006]
[1770481932830,10.3663,86.896,86.784,10.3796]
[1770481934226,10.3675,86.886,86.784,10.3796]
[1770481934430,312.76555694,86.904,86.784,10.3796]
[1770481934431,10.69225789,86.896,86.784,10.3796]
[1770481934633,323.13095694,86.904,86.801,10.3776]
[1770481934827,312.76555694,86.904,86.801,10.3776]
[1770481935829,312.76555694,86.904,86.818,10.3755]
[1770481936229,10.3631,86.923,86.818,10.3755]
[1770481936824,10.69225789,86.938,86.835,10.3735]
[1770481937023,8.89093081,86.94,86.835,10.3735]
[1770481939232,8.89093081,86.94,86.8,8.89093081]
[1770481939233,8.89093081,86.94,86.852,10.3715]
[1770481939534,10.69225789,86.957,86.852,10.3715]
[1770481940938,10.69225789,86.957,86.83,8.89093081]
[1770481940939,10.69225789,86.962,86.868,10.3695]
[1770481941139,8.89093081,86.97,86.83,8.89093081]
[1770481941140,10.69225789,86.955,86.83,8.89093081]
[1770481941339,10.69225789,86.946,86.83,8.89093081]
[1770481941540,10.69225789,86.939,86.8,170.32203081]
[1770481941733,10.69225789,86.939,86.8,8.89093081]
[1770481941933,8.89093081,86.94,86.8,8.89093081]
[1770481942842,10.3617,86.934,86.825,10.3747]
[1770481943037,10.3617,86.934,86.807,161.4183]
[1770481943234,10.3617,86.934,86.808,161.4166]
[1770481943635,10.3617,86.934,86.841,10.3727]
[1770481944943,10.3617,86.934,86.825,10.3747]
[1770481945242,21.05395789,86.934,86.825,10.3747]
[1770481946137,10.3629,86.925,86.825,10.3747]
[1770481947245,10.69225789,86.934,86.84,10.3729]
[1770481947445,10.69225789,86.937,86.84,10.3729]
[1770481947948,10.69225789,86.938,86.84,10.3729]
[1770481948244,10.3616,86.936,86.84,10.3729]
[1770481948439,10.69225789,86.927,86.84,10.3729]
[1770481948639,10.69225789,86.923,86.84,10.3729]
[1770481948838,10.69225789,86.923,86.822,10.3751]
[1770481949034,10.69225789,86.923,86.744,13.98578787]
[1770481949035,10.69225789,86.913,86.78,8.91105981]
[1770481949240,8.91105981,86.92,86.782,161.4651]
[1770481949241,10.69225789,86.911,86.782,161.4651]
[1770481949441,10.69225789,86.914,86.782,161.4651]
[1770481950040,10.69225789,86.916,86.782,161.4651]
[1770481950445,10.69225789,86.914,86.788,161.4538]
[1770481950836,10.69225789,86.914,86.789,161.4517]
[1770481951039,10.69225789,86.914,86.823,10.3749]
[1770481951337,10.69225789,86.915,86.823,10.3749]
[1770481951836,10.69225789,86.913,86.823,10.3749]
[1770481952236,10.69225789,86.911,86.823,10.3749]
[1770481952441,10.69225789,86.906,86.823,10.3749]
[1770481953035,10.69225789,86.905,86.823,10.3749]
[1770481953339,10.69225789,86.902,86.823,10.3749]
[1770481953541,10.69225789,86.903,86.797,161.4373]
[1770481953734,10.69225789,86.911,86.797,161.4373]
[1770481954136,10.69225789,86.905,86.797,161.4373]
[1770481954335,10.69225789,86.901,86.797,161.4373]
[1770481954744,10.69225789,86.903,86.834,10.3736]
[1770481955245,10.69225789,86.919,86.834,10.3736]
[1770481955431,14.30640013,86.931,86.834,10.3736]
[1770481955432,10.69225789,86.911,86.834,10.3736]
[1770481956041,10.69225789,86.913,86.834,10.3736]
[1770481956345,10.69225789,86.899,86.834,10.3736]
[1770481956544,10.69225789,86.901,86.834,10.3736]
[1770481957040,10.69225789,86.9,86.834,10.3736]
[1770481957246,14.30640013,86.909,86.817,10.3756]
[1770481957742,8.91105981,86.92,86.834,10.3736]
[1770481957938,10.71400763,86.902,86.834,10.3736]
[1770481958132,10.361,86.94,86.834,10.3736]
[1770481958133,10.71377932,86.904,86.834,10.3736]
[1770481958339,10.71377932,86.901,86.834,10.3736]
[1770481958732,10.361,86.94,86.834,10.3736]
[1770481958733,10.71377932,86.9,86.834,10.3736]
[1770481958938,10.71377932,86.899,86.834,10.3736]
[1770481959344,10.71377932,86.894,86.834,10.3736]
[1770481959542,10.71377932,86.893,86.834,10.3736]
[1770481959748,10.71377932,86.888,86.819,10.3755]
[1770481960250,10.71377932,86.887,86.819,10.3755]
[1770481960446,10.71377932,86.889,86.819,10.3755]
[1770481960650,10.71377932,86.893,86.834,10.3736]
[1770481960844,10.71377932,86.896,86.834,10.3736]
[1770481961455,10.71377932,86.897,86.834,10.3736]
[1770481961744,10.71377932,86.895,86.834,10.3736]
[1770481961950,10.71377932,86.897,86.834,10.3736]
[1770481962153,10.71377932,86.895,86.834,10.3736]
[1770481962351,10.71377932,86.896,86.834,10.3736]
[1770481962853,10.71377932,86.893,86.834,10.3736]
[1770481964146,10.71377932,86.892,86.834,10.3736]
[1770481964354,10.3628,86.925,86.834,10.3736]
[1770481964355,10.71377932,86.901,86.834,10.3736]
[1770481964551,10.71377932,86.901,86.791,14.13154017]
[1770481964552,10.71377932,86.901,86.851,10.3716]
[1770481964748,10.71377932,86.903,86.851,10.3716]
[1770481965552,10.71377932,86.909,86.851,10.3716]
[1770481965757,10.71377932,86.919,86.851,10.3716]
[1770481966153,10.71377932,86.92,86.867,10.3696]
[1770481966558,10.71377932,86.923,86.867,10.3696]
[1770481966857,10.71377932,86.925,86.867,10.3696]
[1770481967054,10.71377932,86.923,86.867,10.3696]
[1770481967257,10.71377932,86.926,86.867,10.3696]
[1770481967654,10.71377932,86.924,86.867,10.3696]
[1770481968055,10.71377932,86.938,86.888,10.3672]
[1770481968250,21.26231963,86.961,86.84,8.91105981]
[1770481968251,10.71377932,86.951,86.867,161.3075]
[1770481968452,10.71377932,86.96,86.867,161.3075]
[1770481968656,10.71377932,86.957,86.867,161.3075]
[1770481969054,10.71377932,86.958,86.867,161.3075]
[1770481969258,10.71377932,86.96,86.867,161.3075]
[1770481969755,10.71377932,86.965,86.903,10.3653]
[1770481969961,10.71377932,86.97,86.903,10.3653]
[1770481970159,10.71377932,86.973,86.87,8.91105981]
[1770481970354,10.71377932,86.988,86.922,10.3632]
[1770481970554,10.71377932,86.989,86.903,161.2406]
[1770481970754,10.71377932,86.994,86.937,10.3613]
[1770481971061,10.71377932,87.014,86.937,10.3613]
[1770481971360,10.71377932,87.016,86.937,10.3613]
[1770481971553,10.71377932,87.018,86.937,10.3613]
[1770481971750,10.71377932,87.018,86.953,10.3594]
[1770481972254,10.71377932,87.039,86.953,10.3594]
[1770481972860,10.71377932,87.037,86.953,10.3594]
[1770481973053,10.64809498,87.041,86.953,10.3594]
[1770481973859,10.64809498,87.041,86.921,161.2065]
[1770481973860,10.64809498,87.047,86.969,10.3575]
[1770481974055,10.64809498,87.054,86.969,10.3575]
[1770481975060,10.64809498,87.058,86.969,10.3575]
[1770481975269,10.64809498,87.057,86.969,10.3575]
[1770481975855,8.91105981,87.06,86.969,10.3575]
[1770481977167,10.64809498,87.048,86.951,10.3596]
[1770481977377,10.64809498,87.05,86.951,10.3596]
[1770481977668,8.91105981,87.06,86.938,161.1741]
[1770481977866,8.91105981,87.06,86.93,8.91105981]
[1770481977867,8.91105981,87.06,86.969,10.3575]
[1770481979374,10.64809498,87.079,86.969,10.3575]
[1770481980264,8.91105981,87.09,86.986,10.3555]
[1770481980265,10.64809498,87.083,86.986,10.3555]
[1770481980471,10.64809498,87.084,86.986,10.3555]
[1770481980770,10.59011223,87.083,86.986,10.3555]
[1770481980970,10.59011223,87.088,86.986,10.3555]
[1770481981466,10.3443,87.081,86.966,10.3579]
[1770481981662,10.59011223,87.075,86.966,10.3579]
[1770481981862,10.59011223,87.077,86.966,10.3579]
[1770481982065,10.59011223,87.076,86.966,10.3579]
[1770481982259,10.3455,87.071,86.966,10.3579]
[1770481982675,8.91105981,87.06,86.966,10.3579]
[1770481983567,10.3469,87.059,86.949,10.3599]
[1770481983763,10.59011223,87.056,86.949,10.3599]
[1770481984771,10.3482,87.048,86.949,10.3599]
[1770481985374,8.91105981,87.03,86.933,10.3618]
[1770481986378,10.3506,87.028,86.933,10.3618]
[1770481986569,14.28534351,87.063,86.9,8.91105981]
[1770481986570,10.59011223,87.055,86.949,10.3599]
[1770481986867,8.91105981,87.06,86.949,10.3599]
[1770481987264,10.3481,87.049,86.949,10.3599]
[1770481987467,8.91105981,87.06,86.964,10.3581]
[1770481988178,8.91105981,87.06,86.923,34.57]
[1770481988179,10.59011223,87.093,86.979,10.3563]
[1770481988472,10.59011223,87.102,86.979,10.3563]
[1770481988665,10.3441,87.083,86.979,10.3563]
[1770481992469,8.91105981,87.11,86.8,493.20685981]
[1770481992470,10.59011223,87.117,86.98,8.91105981]
[1770481992679,8.91105981,87.12,86.99,161.0782]
[1770481992869,8.91105981,87.12,86.983,161.0915]
[1770481993266,8.91105981,87.12,87.01,10.3526]
[1770481996375,8.91105981,87.12,87.026,10.3507]
[1770481996878,10.3373,87.14,87.01,8.91105981]
[1770481997177,8.91105981,87.15,87.042,10.3488]
[1770481997976,10.3362,87.149,87.042,10.3488]
[1770481998985,10.3384,87.131,87.025,10.3508]
[1770481999478,1.99826587,87.165,86.97,170.02645981]
[1770481999479,8.91105981,87.12,86.97,170.02645981]
[1770481999777,10.3402,87.116,87.007,10.353]
[1770481999977,8.91105981,87.09,86.97,8.91105981]
[1770482000182,10.3433,87.089,86.986,10.3555]
[1770482003774,8.91105981,87.09,86.986,10.3555]
[1770482004582,8.91105981,87.12,87.008,10.3529]
[1770482005187,10.3398,87.119,87.008,10.3529]
[1770482005582,8.91105981,87.12,86.989,10.3551]
[1770482005779,10.59011223,87.114,86.989,10.3551]
[1770482005975,10.59011223,87.113,86.989,10.3551]
[1770482006180,10.59011223,87.11,86.989,10.3551]
[1770482006380,8.91105981,87.09,86.989,10.3551]
[1770482007477,8.88231564,87.09,86.989,10.3551]
[1770482008187,10.3411,87.108,87.006,10.3531]
[1770482008686,10.59011223,87.099,86.963,161.1281]
[1770482009084,10.3433,87.089,86.989,10.3551]
[1770482010092,20.93341223,87.089,86.989,10.3551]
[1770482010388,10.59011223,87.088,86.989,10.3551]
[1770482010782,20.93341223,87.089,86.989,10.3551]
[1770482011083,10.59011223,87.085,86.989,10.3551]
[1770482011386,10.59011223,87.084,86.989,10.3551]
[1770482011784,10.59011223,87.078,86.989,10.3551]
[1770482012188,10.59011223,87.074,86.989,10.3551]
[1770482012386,10.59011223,87.073,86.989,10.3551]
[1770482012591,10.59011223,87.074,86.989,10.3551]
[1770482013288,10.59011223,87.07,86.989,10.3551]
[1770482013690,10.59011223,87.08,86.989,10.3551]
[1770482014089,10.59011223,87.077,86.989,10.3551]
[1770482015083,10.59011223,87.074,86.989,10.3551]
[1770482015285,10.59011223,87.073,86.989,10.3551]
[1770482015786,10.59011223,87.068,86.989,10.3551]
[1770482016292,10.59011223,87.067,86.989,10.3551]
[1770482017092,10.59011223,87.066,86.989,10.3551]
[1770482017490,10.59011223,87.056,86.974,10.3569]
[1770482017680,10.59011223,87.045,86.974,10.3569]
[1770482018094,10.59011223,87.042,86.974,10.3569]
[1770482018288,10.59011223,87.04,86.974,10.3569]
[1770482018491,10.59011223,87.04,86.957,10.3589]
[1770482019394,10.59011223,87.044,86.972,10.3571]
[1770482020389,10.59011223,87.047,86.972,10.3571]
[1770482020695,10.59011223,87.059,86.989,10.3551]
[1770482020894,10.59011223,87.06,86.989,10.3551]
[1770482021094,10.59011223,87.063,86.989,10.3551]
[1770482021393,10.59011223,87.065,87.004,10.3534]
[1770482021592,10.59011223,87.06,87.004,10.3534]
[1770482021793,10.59011223,87.061,87.004,10.3534]
[1770482021992,10.59011223,87.06,86.988,10.3552]
[1770482022690,10.59011223,87.06,86.969,10.3575]
[1770482022895,8.88231564,87.1,86.969,10.3575]
[1770482022896,10.59011223,87.041,86.969,10.3575]
[1770482023092,10.59011223,87.046,86.969,10.3575]
[1770482024195,8.88231564,87.07,86.911,441.51752724]
[1770482024196,10.59011223,87.031,86.948,10.36]
[1770482024499,10.59011223,87.026,86.948,10.36]
[1770482024685,8.88231564,87.04,86.948,10.36]
[1770482024686,10.59011223,87.025,86.948,10.36]
[1770482025187,10.59011223,87.018,86.948,10.36]
[1770482025591,10.59011223,87.02,86.948,10.36]
[1770482025787,10.59011223,87.022,86.948,10.36]
[1770482026198,10.59011223,87.023,86.948,10.36]
[1770482027191,10.59011223,87.025,86.948,10.36]
[1770482027796,10.59011223,87.029,86.964,10.358]
[1770482028000,10.59011223,87.039,86.964,10.358]
[1770482029298,10.59011223,87.025,86.964,10.358]
[1770482029589,10.59011223,87.027,86.964,10.358]
[1770482029792,10.59011223,87.025,86.964,10.358]
[1770482030399,10.59011223,87.024,86.948,10.3601]
[1770482031102,10.59011223,87.02,86.948,10.3601]
[1770482031303,10.59011223,87.019,86.948,10.3601]
[1770482031598,10.59011223,87.025,86.948,10.3601]
[1770482031797,10.59011223,87.019,86.948,10.3601]
[1770482031992,10.59011223,87.023,86.948,10.3601]
[1770482034304,10.59011223,87.024,86.948,10.3601]
[1770482035197,10.59011223,87.025,86.948,10.3601]
[1770482035398,10.59011223,87.027,86.948,10.3601]
[1770482036199,10.59011223,87.031,86.948,10.3601]
[1770482036394,10.59011223,87.035,86.948,10.3601]
[1770482036697,10.59011223,87.034,86.948,10.3601]
[1770482037201,10.59011223,87.035,86.948,10.3601]
[1770482039003,10.59011223,87.034,86.948,10.3601]
[1770482039402,10.59011223,87.02,86.948,10.3601]
[1770482039598,10.59011223,87.02,86.911,441.51752724]
[1770482039804,10.59011223,87.015,86.932,10.3619]
[1770482040704,10.59011223,87.01,86.932,10.3619]
[1770482040904,10.59011223,87.006,86.932,10.3619]
[1770482041104,10.59011223,86.992,86.912,10.3643]
[1770482041304,10.59011223,86.997,86.912,10.3643]
[1770482042010,10.59011223,86.996,86.912,10.3643]
[1770482042218,10.59011223,86.994,86.912,10.3643]
[1770482042414,10.59011223,86.995,86.912,10.3643]
[1770482042616,10.59011223,86.982,86.912,10.3643]
[1770482042813,10.59011223,86.981,86.912,10.3643]
[1770482043216,10.59011223,86.979,86.911,441.51752724]
[1770482043418,10.59011223,86.976,86.911,441.51752724]
[1770482044011,10.59011223,86.975,86.895,10.3664]
[1770482044211,10.59011223,86.97,86.895,10.3664]
[1770482044509,10.59011223,86.972,86.895,10.3664]
[1770482044915,10.3558,86.984,86.878,10.3683]
[1770482044916,10.59011223,86.962,86.878,10.3683]
[1770482045113,10.59011223,86.953,86.878,10.3683]
[1770482045309,10.59011223,86.957,86.878,10.3683]
[1770482045519,10.59011223,86.953,86.878,10.3683]
[1770482045824,10.59011223,86.952,86.861,10.3703]
[1770482046116,10.59011223,86.947,86.861,10.3703]
[1770482046312,10.59011223,86.956,86.877,10.3684]
[1770482046616,10.59011223,86.969,86.877,10.3684]
[1770482047214,10.59011223,86.979,86.877,10.3684]
[1770482047418,8.88231564,86.98,86.877,10.3684]
[1770482047419,19.47242787,86.98,86.877,10.3684]
[1770482048322,8.88231564,86.98,86.877,10.3684]
[1770482048524,10.59011223,86.977,86.877,10.3684]
[1770482049313,10.59011223,86.978,86.877,10.3684]
[1770482049518,10.59011223,86.966,86.877,10.3684]
[1770482049717,10.59011223,86.974,86.877,10.3684]
[1770482050120,8.88231564,86.98,86.877,10.3684]
[1770482050121,10.59011223,86.972,86.877,10.3684]
[1770482050320,10.59011223,86.973,86.877,10.3684]
[1770482050516,10.59011223,86.966,86.877,10.3684]
[1770482050923,10.59011223,86.962,86.877,10.3684]
[1770482051418,10.59011223,86.963,86.877,10.3684]
[1770482051815,10.59011223,86.972,86.877,10.3684]
[1770482052014,10.59011223,86.968,86.877,10.3684]
[1770482052421,10.59011223,86.969,86.877,10.3684]